[Event "FIDE WCCC Open-08 2024"]
[Site "Montesilvano"]
[Date "2024.11.20"]
[Round "6.24"]
[White "Czachurski, Ignacy"]
[Black "Kiss, Lorinc Istvan"]
[Result "1-0"]
[ECO "C45"]
[WhiteElo "1672"]
[BlackElo "1501"]
[Annotator "NA RC"]
[PlyCount "71"]
[EventDate "2024.11.18"]
[EventType "swiss"]
[EventCountry "ITA"]
[SourceTitle "playchess.com"]
[Source "ChessBase"]
[SourceQuality "1"]
[TimeControl "5400+30"]

1. e4 {[%emt 0:00:06]} e5 {[%emt 0:00:07]} 2. Nf3 {[%emt 0:00:05]} Nc6 {[%emt 0:01:54]} 3. d4 {[%emt 0:00:10]} exd4 {[%emt 0:02:29]} 4. Nxd4 {[%emt 1:32:09]} Bb4+ {[%emt 0:02:30]} 5. c3 {[%emt 0:00:00]} Bc5 {[%emt 0:02:30]} 6. Be3 {[%emt 0:00:00]} Bb6 {[%emt 0:02:30]} 7. Nf5 {[%emt 0:00:00]} Bxe3 {[%emt 0:00:32]} 8. Nxe3 {[%emt 0:00:00]} d6 {[%emt 0:02:27]} 9. Nd2 {[%emt 0:00:00]} Nf6 {[%emt 0:04:09]} 10. f3 {[%emt 0:00:00]} O-O {[%emt 0:03:38]} 11. g4 {[%emt 0:00:00]} h6 {[%emt 0:03:40]} 12. Qe2 {[%emt 0:00:00]} b6 {[%emt 0:01:00]} 13. h4 {[%emt 0:00:00]} h5 {[%emt 0:02:57]} 14. g5 {[%emt 0:00:00]} Nh7 {[%emt 0:00:41]} 15. g6 {[%emt 0:00:00]} fxg6 {[%emt 0:00:51]} 16. Qc4+ {[%emt 0:00:00]} Kh8 {[%emt 0:02:34]} 17. Qxc6 {[%emt 0:00:00]} Be6 {[%emt 0:00:27]} 18. O-O-O {[%emt 0:00:00]} a5 {[%emt 0:01:23]} 19. Bc4 {[%emt 0:00:00]} Bd7 {[%emt 0:02:12]} 20. Qd5 {[%emt 0:00:00]} Nf6 {[%emt 0:00:48]} 21. Qg5 {[%emt 0:00:00]} Qe8 {[%emt 0:01:17]} 22. Rhg1 {[%emt 0:00:00]} Kh7 {[%emt 0:02:49]} 23. Nd5 {[%emt 0:00:00]} Nxd5 {[%emt 0:02:22]} 24. Qxd5 {[%emt 0:00:00]} b5 {[%emt 0:02:16]} 25. Bb3 {[%emt 0:00:00]} a4 {[%emt 0:00:13]} 26. Bc2 {[%emt 0:00:00]} Be6 {[%emt 0:00:52]} 27. Qg5 {[%emt 0:00:00]} a3 {[%emt 0:01:58]} 28. b3 {[%emt 0:00:00]} Qf7 {[%emt 0:01:47]} 29. f4 {[%emt 0:00:00]} Bg4 {[%emt 0:04:27]} 30. Rdf1 {[%emt 0:00:00]} c5 {[%emt 0:02:36]} 31. f5 {[%emt 0:00:00]} gxf5 {[%emt 0:03:29]} 32. exf5 {[%emt 0:00:00]} Kh8 {[%emt 0:03:47]} 33. Ne4 {[%emt 0:00:00]} c4 {[%emt 0:04:00]} 34. f6 {[%emt 0:00:00]} Kg8 {[%emt 0:16:18]} 35. Nxd6 {[%emt 0:00:00]} Qd7 {[%emt 0:02:54]} 36. Qg6 {[%emt 0:00:00]} 1-0

[Event "FIDE WCCC Open-08 2024"]
[Site "Montesilvano"]
[Date "2024.11.20"]
[Round "6.25"]
[White "Melkonyan, Mark"]
[Black "Adilbek, Adinur"]
[Result "0-1"]
[ECO "B13"]
[WhiteElo "1445"]
[BlackElo "1651"]
[Annotator "NA RC"]
[PlyCount "134"]
[EventDate "2024.11.18"]
[EventType "swiss"]
[EventCountry "ITA"]
[SourceTitle "playchess.com"]
[Source "ChessBase"]
[SourceQuality "1"]
[TimeControl "5400+30"]

1. e4 {[%emt 1:31:00]} c6 {[%emt 0:00:30]} 2. d4 {[%emt 0:00:00]} d5 {[%emt 0:00:05]} 3. exd5 {[%emt 0:00:00]} cxd5 {[%emt 0:00:05]} 4. Bd3 {[%emt 0:00:00]} Nc6 {[%emt 0:00:07]} 5. c3 {[%emt 0:00:00]} Nf6 {[%emt 0:00:15]} 6. h3 {[%emt 0:00:00]} g6 {[%emt 0:00:06]} 7. Nf3 {[%emt 0:00:00]} Bf5 {[%emt 0:00:06]} 8. O-O {[%emt 0:00:00]} Bxd3 {[%emt 0:00:12]} 9. Qxd3 {[%emt 0:00:00]} Bg7 {[%emt 0:00:20]} 10. Bf4 {[%emt 0:00:00]} O-O {[%emt 0:00:39]} 11. Nbd2 {[%emt 0:00:00]} a6 {[%emt 0:00:40]} 12. a4 {[%emt 0:00:00]} Rc8 {[%emt 0:00:44]} 13. Nb3 {[%emt 0:00:00]} Ne4 {[%emt 0:00:28]} 14. Nfd2 {[%emt 0:00:00]} Nxd2 {[%emt 0:03:31]} 15. Qxd2 {[%emt 0:00:00]} Na5 {[%emt 0:00:31]} 16. Nxa5 {[%emt 0:00:00]} Qxa5 {[%emt 0:00:17]} 17. Bh6 {[%emt 0:00:00]} Rc4 {[%emt 0:01:16]} 18. Bxg7 {[%emt 0:00:00]} Kxg7 {[%emt 0:00:12]} 19. Qc2 {[%emt 0:00:00]} Rfc8 {[%emt 0:00:09]} 20. f4 {[%emt 0:00:00]} Rxd4 {[%emt 0:00:54]} 21. f5 {[%emt 0:00:00]} Re4 {[%emt 0:01:21]} 22. Qf2 {[%emt 0:02:31]} Qc5 {[%emt 0:00:18]} 23. fxg6 {[%emt 0:02:11]} hxg6 {[%emt 0:00:32]} 24. Kh1 {[%emt 0:03:48]} Qxf2 {[%emt 0:01:30]} 25. Rxf2 {[%emt 0:00:09]} Rcc4 {[%emt 0:00:09]} 26. Raf1 {[%emt 0:01:18]} f6 {[%emt 0:00:15]} 27. Rd2 {[%emt 0:01:46]} e6 {[%emt 0:00:23]} 28. Rdf2 {[%emt 0:00:59]} f5 {[%emt 0:00:07]} 29. g4 {[%emt 0:00:42]} f4 {[%emt 0:01:05]} 30. b3 {[%emt 0:00:25]} Rxc3 {[%emt 0:00:12]} 31. Rxf4 {[%emt 0:00:08]} Rxf4 {[%emt 0:00:05]} 32. Rxf4 {[%emt 0:00:09]} Rxh3+ {[%emt 0:00:04]} 33. Kg2 {[%emt 0:00:47]} Rxb3 {[%emt 0:00:03]} 34. g5 {[%emt 0:00:40]} Re3 {[%emt 0:00:15]} 35. Rb4 {[%emt 0:00:30]} b5 {[%emt 0:00:50]} 36. axb5 {[%emt 0:00:06]} axb5 {[%emt 0:00:00]} 37. Rxb5 {[%emt 0:00:15]} Re5 {[%emt 0:00:09]} 38. Rb7+ {[%emt 0:00:21]} Kf8 {[%emt 0:00:09]} 39. Rb8+ {[%emt 0:00:14]} Ke7 {[%emt 0:00:01]} 40. Rb7+ {[%emt 0:00:28]} Kd6 {[%emt 0:00:06]} 41. Rb6+ {[%emt 0:00:24]} Kc5 {[%emt 0:00:16]} 42. Ra6 {[%emt 0:00:19]} Rxg5+ {[%emt 0:00:07]} 43. Kf3 {[%emt 0:00:19]} e5 {[%emt 0:00:17]} 44. Ra5+ {[%emt 0:00:29]} Kc4 {[%emt 0:00:25]} 45. Ra4+ {[%emt 0:00:09]} Kb5 {[%emt 0:00:13]} 46. Ra1 {[%emt 0:00:19]} e4+ {[%emt 0:00:06]} 47. Kf4 {[%emt 0:00:45]} Rf5+ {[%emt 0:00:02]} 48. Ke3 {[%emt 0:00:28]} Kc5 {[%emt 0:00:06]} 49. Rc1+ {[%emt 0:00:12]} Kd6 {[%emt 0:00:02]} 50. Ra1 {[%emt 0:00:43]} Rf3+ {[%emt 0:00:04]} 51. Ke2 {[%emt 0:00:31]} d4 {[%emt 0:00:05]} 52. Ra6+ {[%emt 0:00:19]} Ke5 {[%emt 0:00:11]} 53. Ra8 {[%emt 0:01:10]} d3+ {[%emt 0:00:10]} 54. Kd2 {[%emt 0:00:51]} Rf2+ {[%emt 0:00:04]} 55. Kd1 {[%emt 0:01:03]} Kd4 {[%emt 0:00:14]} 56. Rd8+ {[%emt 0:00:14]} Ke3 {[%emt 0:00:05]} 57. Ke1 {[%emt 0:00:57]} d2+ {[%emt 0:00:05]} 58. Kd1 {[%emt 0:00:42]} Rf1+ {[%emt 0:00:04]} 59. Kc2 {[%emt 0:00:17]} Rc1+ {[%emt 0:00:25]} 60. Kb2 {[%emt 0:00:21]} d1=Q {[%emt 0:00:14]} 61. Rxd1 {[%emt 0:00:09]} Rxd1 {[%emt 0:00:21]} 62. Kc2 {[%emt 0:00:24]} Rd3 {[%emt 0:00:07]} 63. Kc1 {[%emt 0:00:13]} Rd2 {[%emt 0:00:08]} 64. Kb1 {[%emt 0:00:06]} Kd3 {[%emt 0:00:19]} 65. Kc1 {[%emt 0:00:16]} e3 {[%emt 0:00:07]} 66. Kb1 {[%emt 0:00:27]} e2 {[%emt 0:00:16]} 67. Kc1 {[%emt 0:00:14]} e1=R# {[%emt 0:00:09]} 0-1

[Event "FIDE WCCC Open-08 2024"]
[Site "Montesilvano"]
[Date "2024.11.20"]
[Round "6.28"]
[White "Nguyen Phuc Cao Danh"]
[Black "Morozevich, Kirill Aleks"]
[Result "0-1"]
[ECO "D35"]
[WhiteElo "1627"]
[BlackElo "1484"]
[Annotator "NA RC"]
[PlyCount "97"]
[EventDate "2024.11.18"]
[EventType "swiss"]
[EventCountry "ITA"]
[SourceTitle "playchess.com"]
[Source "ChessBase"]
[SourceQuality "1"]
[TimeControl "5400+30"]

1. d4 {[%emt 0:00:03]} d5 {[%emt 0:00:08]} 2. Nf3 {[%emt 0:00:06]} Nf6 {[%emt 0:00:05]} 3. c4 {[%emt 0:00:12]} e6 {[%emt 0:00:06]} 4. Nc3 {[%emt 0:00:09]} Be7 {[%emt 0:00:04]} 5. cxd5 {[%emt 0:00:25]} exd5 {[%emt 0:00:08]} 6. Bf4 {[%emt 0:00:25]} O-O {[%emt 0:00:21]} 7. e3 {[%emt 0:00:10]} c6 {[%emt 0:01:14]} 8. Bd3 {[%emt 0:01:24]} Bg4 {[%emt 0:00:06]} 9. h3 {[%emt 0:00:18]} Bh5 {[%emt 0:00:05]} 10. Qc2 {[%emt 0:01:25]} Nbd7 {[%emt 0:00:16]} 11. Ne5 {[%emt 0:01:00]} Bg6 {[%emt 0:03:35]} 12. g4 {[%emt 0:07:47]} Bxd3 {[%emt 0:00:23]} 13. Qxd3 {[%emt 0:00:16]} Nxe5 {[%emt 0:00:24]} 14. Bxe5 {[%emt 0:00:51]} Nd7 {[%emt 0:00:19]} 15. Bg3 {[%emt 0:01:13]} Bh4 {[%emt 0:01:05]} 16. Rg1 {[%emt 0:02:52]} Re8 {[%emt 0:00:42]} 17. O-O-O {[%emt 0:00:45]} b5 {[%emt 0:01:36]} 18. Qf5 {[%emt 0:07:27]} Bxg3 {[%emt 0:00:29]} 19. Rxg3 {[%emt 0:00:13]} a5 {[%emt 0:00:38]} 20. g5 {[%emt 0:05:59]} a4 {[%emt 0:00:59]} 21. h4 {[%emt 0:04:23]} b4 {[%emt 0:03:56]} 22. Nb1 {[%emt 0:02:16]} Rc8 {[%emt 0:01:52]} 23. Nd2 {[%emt 0:07:24]} c5 {[%emt 0:01:39]} 24. Kb1 {[%emt 0:00:14]} c4 {[%emt 0:00:30]} 25. Rc1 {[%emt 0:22:54]} c3 {[%emt 0:00:15]} 26. Nf3 {[%emt 0:00:13]} cxb2 {[%emt 0:00:14]} 27. Rc2 {[%emt 0:05:25]} Rxc2 {[%emt 0:05:08]} 28. Qxc2 {[%emt 0:00:14]} a3 {[%emt 0:00:29]} 29. Rg1 {[%emt 0:10:30]} Qc8 {[%emt 0:02:42]} 30. Ne1 {[%emt 0:03:06]} Nb6 {[%emt 0:01:20]} 31. Nd3 {[%emt 0:06:10]} Qxc2+ {[%emt 0:00:14]} 32. Kxc2 {[%emt 0:00:08]} Rc8+ {[%emt 0:00:06]} 33. Kb1 {[%emt 0:00:10]} Na4 {[%emt 0:00:32]} 34. Nc5 {[%emt 0:00:46]} Nxc5 {[%emt 0:00:18]} 35. dxc5 {[%emt 0:00:10]} Rxc5 {[%emt 0:00:03]} 36. Rd1 {[%emt 0:00:37]} Kf8 {[%emt 0:00:16]} 37. Re1 {[%emt 0:00:56]} Ke7 {[%emt 0:00:28]} 38. Rd1 {[%emt 0:01:47]} Ke6 {[%emt 0:00:10]} 39. f3 {[%emt 0:00:39]} Ke5 {[%emt 0:00:07]} 40. Rf1 {[%emt 0:00:23]} Rc3 {[%emt 0:00:45]} 41. Re1 {[%emt 0:00:08]} Rc4 {[%emt 0:00:54]} 42. Rh1 {[%emt 0:00:10]} Kf5 {[%emt 0:00:11]} 43. Rd1 {[%emt 0:02:06]} Rxh4 {[%emt 0:01:17]} 44. Rxd5+ {[%emt 0:00:58]} Kg6 {[%emt 0:00:10]} 45. Rd1 {[%emt 0:00:08]} Kxg5 {[%emt 0:00:14]} 46. f4+ {[%emt 0:00:10]} Kf5 {[%emt 0:00:20]} 47. Kc2 {[%emt 0:00:12]} Rh3 {[%emt 0:01:18]} 48. Kd3 {[%emt 0:01:25]} b3 {[%emt 0:00:19]} 49. Kd4 {[%emt 0:01:23]} 0-1

[Event "FIDE WCCC Open-08 2024"]
[Site "Montesilvano"]
[Date "2024.11.20"]
[Round "6.29"]
[White "Batbileg, Boldbaatar"]
[Black "Sivan, Leeor"]
[Result "1-0"]
[ECO "D54"]
[WhiteElo "1623"]
[BlackElo "1464"]
[Annotator "NA RC"]
[PlyCount "61"]
[EventDate "2024.11.18"]
[EventType "swiss"]
[EventCountry "ITA"]
[SourceTitle "playchess.com"]
[Source "ChessBase"]
[SourceQuality "1"]
[TimeControl "5400+30"]

1. d4 {[%emt 0:05:02]} d5 {[%emt 0:00:49]} 2. c4 {[%emt 0:05:36]} e6 {[%emt 0:01:11]} 3. Nc3 {[%emt 0:00:16]} Nf6 {[%emt 0:02:39]} 4. Bg5 {[%emt 0:00:14]} Be7 {[%emt 0:00:20]} 5. e3 {[%emt 0:00:29]} h6 {[%emt 0:00:52]} 6. Bh4 {[%emt 0:00:14]} O-O {[%emt 0:01:31]} 7. Rc1 {[%emt 0:00:34]} Ne4 {[%emt 0:04:31]} 8. Bxe7 {[%emt 0:00:42]} Nxc3 {[%emt 0:09:54]} 9. Bxd8 {[%emt 0:00:15]} Nxd1 {[%emt 0:00:15]} 10. Be7 {[%emt 0:00:23]} Nxb2 {[%emt 0:07:12]} 11. Bxf8 {[%emt 0:00:14]} Kxf8 {[%emt 0:00:36]} 12. cxd5 {[%emt 0:02:02]} c6 {[%emt 0:04:14]} 13. dxc6 {[%emt 0:00:38]} Nxc6 {[%emt 0:00:08]} 14. Nf3 {[%emt 0:01:00]} f6 {[%emt 0:03:29]} 15. Rc2 {[%emt 0:00:43]} Na4 {[%emt 0:00:25]} 16. Bb5 {[%emt 0:00:18]} Nb4 {[%emt 0:05:19]} 17. Bxa4 {[%emt 0:03:18]} Nxc2+ {[%emt 0:00:07]} 18. Bxc2 {[%emt 0:00:34]} Bd7 {[%emt 0:01:06]} 19. Kd2 {[%emt 0:00:26]} Rc8 {[%emt 0:01:23]} 20. Rc1 {[%emt 0:00:12]} Bc6 {[%emt 0:54:29]} 21. Ba4 {[%emt 0:03:37]} Ke7 {[%emt 0:00:00]} 22. Bxc6 {[%emt 0:00:34]} Rxc6 {[%emt 0:00:00]} 23. Rxc6 {[%emt 0:00:11]} bxc6 {[%emt 0:00:00]} 24. Kc3 {[%emt 0:00:21]} a5 {[%emt 0:00:00]} 25. Kb3 {[%emt 0:01:11]} Kd7 {[%emt 0:00:00]} 26. Ka4 {[%emt 0:04:43]} Kc7 {[%emt 0:00:00]} 27. Kxa5 {[%emt 0:00:15]} g5 {[%emt 0:00:00]} 28. Nd2 {[%emt 0:00:19]} f5 {[%emt 0:00:00]} 29. g3 {[%emt 0:00:27]} h5 {[%emt 0:00:00]} 30. Nf3 {[%emt 0:02:31]} g4 {[%emt 0:00:00]} 31. Ng5 {[%emt 0:00:54]} 1-0

[Event "FIDE WCCC Open-08 2024"]
[Site "Montesilvano"]
[Date "2024.11.20"]
[Round "6.30"]
[White "Mohamed Fouad, Yahia"]
[Black "Chanishvili, Noa"]
[Result "1-0"]
[ECO "D23"]
[WhiteElo "1705"]
[BlackElo "1553"]
[Annotator "NA RC"]
[PlyCount "139"]
[EventDate "2024.11.18"]
[EventType "swiss"]
[EventCountry "ITA"]
[SourceTitle "playchess.com"]
[Source "ChessBase"]
[SourceQuality "1"]
[TimeControl "5400+30"]

1. d4 {[%emt 0:00:04]} d5 {[%emt 0:00:12]} 2. Nf3 {[%emt 0:00:26]} Nf6 {[%emt 0:00:45]} 3. c4 {[%emt 0:00:54]} dxc4 {[%emt 0:00:23]} 4. Qa4+ {[%emt 0:00:24]} Nbd7 {[%emt 0:00:42]} 5. Qxc4 {[%emt 0:05:05]} e6 {[%emt 0:02:59]} 6. Bf4 {[%emt 0:00:36]} Bd6 {[%emt 0:01:14]} 7. Bxd6 {[%emt 0:00:59]} cxd6 {[%emt 0:00:21]} 8. Nc3 {[%emt 0:01:27]} O-O {[%emt 0:04:59]} 9. Nb5 {[%emt 0:04:10]} d5 {[%emt 0:01:38]} 10. Qb4 {[%emt 0:04:34]} Qb6 {[%emt 0:07:44]} 11. Qb3 {[%emt 0:03:04]} a6 {[%emt 0:00:54]} 12. Nc3 {[%emt 0:01:51]} Qxb3 {[%emt 0:00:44]} 13. axb3 {[%emt 0:01:34]} Re8 {[%emt 0:02:10]} 14. Nb5 {[%emt 0:01:12]} Rb8 {[%emt 0:01:13]} 15. Nd6 {[%emt 0:06:22]} Re7 {[%emt 0:02:05]} 16. e3 {[%emt 0:00:43]} Ne8 {[%emt 0:00:28]} 17. Nxe8 {[%emt 0:00:21]} Rxe8 {[%emt 0:00:16]} 18. Bd3 {[%emt 0:01:15]} Nf6 {[%emt 0:02:06]} 19. O-O {[%emt 0:01:58]} Bd7 {[%emt 0:00:31]} 20. Rfc1 {[%emt 0:02:24]} Rbc8 {[%emt 0:00:34]} 21. Ne5 {[%emt 0:01:34]} Rxc1+ {[%emt 0:01:19]} 22. Rxc1 {[%emt 0:00:12]} Rc8 {[%emt 0:00:24]} 23. Rxc8+ {[%emt 0:00:39]} Bxc8 {[%emt 0:00:09]} 24. Kf1 {[%emt 0:00:17]} h6 {[%emt 0:01:04]} 25. Ke2 {[%emt 0:05:22]} Nd7 {[%emt 0:03:25]} 26. Nxd7 {[%emt 0:00:23]} Bxd7 {[%emt 0:00:12]} 27. Kd2 {[%emt 0:00:21]} Kf8 {[%emt 0:00:37]} 28. Kc3 {[%emt 0:00:19]} Ke7 {[%emt 0:00:46]} 29. Kb4 {[%emt 0:00:29]} Kd6 {[%emt 0:00:52]} 30. Ka5 {[%emt 0:01:01]} Bc6 {[%emt 0:02:07]} 31. Kb6 {[%emt 0:01:13]} g6 {[%emt 1:03:07]} 32. f4 {[%emt 0:01:09]} h5 {[%emt 0:00:00]} 33. b4 {[%emt 0:01:25]} Kd7 {[%emt 0:00:00]} 34. h4 {[%emt 0:00:22]} Kd6 {[%emt 0:00:00]} 35. b5 {[%emt 0:00:48]} axb5 {[%emt 0:02:00]} 36. Bxb5 {[%emt 0:00:07]} Bxb5 {[%emt 0:00:00]} 37. Kxb5 {[%emt 0:00:14]} Kc7 {[%emt 0:00:00]} 38. Kc5 {[%emt 0:00:18]} b6+ {[%emt 0:00:00]} 39. Kb5 {[%emt 0:02:43]} Kb7 {[%emt 0:00:00]} 40. b3 {[%emt 0:00:19]} Ka7 {[%emt 0:00:00]} 41. Kc6 {[%emt 0:00:13]} Ka6 {[%emt 0:00:00]} 42. Kd7 {[%emt 0:01:07]} Ka5 {[%emt 0:00:00]} 43. Ke7 {[%emt 0:00:31]} b5 {[%emt 0:00:00]} 44. Kxf7 {[%emt 0:00:08]} Kb4 {[%emt 0:00:00]} 45. Kxg6 {[%emt 0:00:12]} Kxb3 {[%emt 0:00:00]} 46. Kxh5 {[%emt 0:00:02]} Kc4 {[%emt 0:00:00]} 47. Kg5 {[%emt 0:00:13]} b4 {[%emt 0:00:00]} 48. h5 {[%emt 0:00:12]} b3 {[%emt 0:00:00]} 49. h6 {[%emt 0:00:04]} b2 {[%emt 0:00:00]} 50. h7 {[%emt 0:00:04]} b1=Q {[%emt 0:00:00]} 51. h8=Q {[%emt 0:00:20]} Qf5+ {[%emt 0:00:00]} 52. Kh4 {[%emt 0:00:14]} Kd3 {[%emt 0:00:00]} 53. g4 {[%emt 0:01:03]} Qe4 {[%emt 0:00:00]} 54. Qe5 {[%emt 0:00:28]} Kxe3 {[%emt 0:00:00]} 55. Kg3 {[%emt 0:01:33]} Kd3 {[%emt 0:00:00]} 56. f5 {[%emt 0:02:14]} Qh1 {[%emt 0:00:00]} 57. fxe6 {[%emt 0:02:08]} Qg1+ {[%emt 0:00:00]} 58. Kh4 {[%emt 0:00:27]} Qh1+ {[%emt 0:00:00]} 59. Kg5 {[%emt 0:00:49]} Qc1+ {[%emt 0:00:00]} 60. Qf4 {[%emt 0:00:10]} Qc8 {[%emt 0:00:00]} 61. e7 {[%emt 0:01:21]} Qg8+ {[%emt 0:00:00]} 62. Kh4 {[%emt 0:00:34]} Qh8+ {[%emt 0:00:00]} 63. Kg3 {[%emt 0:00:17]} Qe8 {[%emt 0:00:00]} 64. Qf8 {[%emt 0:00:31]} Qc6 {[%emt 0:00:00]} 65. e8=Q {[%emt 0:00:13]} Qc7+ {[%emt 0:00:00]} 66. Qf4 {[%emt 0:00:11]} Qa5 {[%emt 0:00:00]} 67. Qee3+ {[%emt 0:00:08]} Kc2 {[%emt 0:00:00]} 68. Qff2+ {[%emt 0:00:06]} Kd1 {[%emt 0:00:00]} 69. Qd3+ {[%emt 0:00:06]} Kc1 {[%emt 0:00:00]} 70. Qfc2# {[%emt 0:00:01]} 1-0

[Event "FIDE WCCC Open-08 2024"]
[Site "Montesilvano"]
[Date "2024.11.20"]
[Round "6.31"]
[White "Kalinin, Bogdan"]
[Black "Bisetto, Alessandro Federico"]
[Result "1-0"]
[ECO "B25"]
[WhiteElo "1548"]
[BlackElo "1671"]
[Annotator "NA RC"]
[PlyCount "76"]
[EventDate "2024.11.18"]
[EventType "swiss"]
[EventCountry "ITA"]
[SourceTitle "playchess.com"]
[Source "ChessBase"]
[SourceQuality "1"]
[TimeControl "5400+30"]

1. e4 {[%emt 0:00:05]} c5 {[%emt 0:00:10]} 2. Nc3 {[%emt 0:00:06]} d6 {[%emt 0:00:17]} 3. g3 {[%emt 0:00:07]} Nc6 {[%emt 0:01:53]} 4. Bg2 {[%emt 0:00:07]} g6 {[%emt 0:00:54]} 5. Nge2 {[%emt 0:00:10]} Bg7 {[%emt 0:00:21]} 6. O-O {[%emt 0:00:11]} Nf6 {[%emt 0:08:38]} 7. d3 {[%emt 0:00:10]} O-O {[%emt 0:01:50]} 8. f4 {[%emt 0:00:29]} Bd7 {[%emt 0:13:17]} 9. h3 {[%emt 0:02:28]} Qc8 {[%emt 0:00:54]} 10. g4 {[%emt 0:00:11]} Qc7 {[%emt 0:14:52]} 11. Ng3 {[%emt 0:02:13]} e6 {[%emt 0:03:09]} 12. f5 {[%emt 0:04:21]} exf5 {[%emt 0:00:53]} 13. exf5 {[%emt 0:00:27]} d5 {[%emt 0:00:06]} 14. Bf4 {[%emt 0:02:06]} Qb6 {[%emt 0:00:05]} 15. g5 {[%emt 0:02:20]} Qxb2 {[%emt 0:22:37]} 16. gxf6 {[%emt 0:02:24]} Bxf6 {[%emt 0:01:12]} 17. Nxd5 {[%emt 0:01:46]} Qxa1 {[%emt 0:00:29]} 18. Qxa1 {[%emt 0:00:06]} Bxa1 {[%emt 0:00:09]} 19. Rxa1 {[%emt 0:00:10]} Kg7 {[%emt 0:06:23]} 20. f6+ {[%emt 0:01:17]} Kg8 {[%emt 0:03:14]} 21. Ne7+ {[%emt 0:00:36]} Nxe7 {[%emt 0:00:05]} 22. fxe7 {[%emt 0:00:09]} Rfe8 {[%emt 0:00:10]} 23. Bd6 {[%emt 0:00:40]} Bc6 {[%emt 0:02:03]} 24. Bxc6 {[%emt 0:00:47]} bxc6 {[%emt 0:00:07]} 25. Ne4 {[%emt 0:00:11]} a5 {[%emt 0:02:40]} 26. Nf6+ {[%emt 0:00:15]} Kg7 {[%emt 0:16:26]} 27. Nxe8+ {[%emt 0:00:12]} Rxe8 {[%emt 0:00:25]} 28. Rb1 {[%emt 0:00:06]} Kf6 {[%emt 0:00:39]} 29. Bxc5 {[%emt 0:00:34]} Rxe7 {[%emt 0:00:31]} 30. Rf1+ {[%emt 0:00:07]} Kg7 {[%emt 0:00:30]} 31. Bxe7 {[%emt 0:00:15]} f5 {[%emt 0:00:30]} 32. c4 {[%emt 0:00:20]} a4 {[%emt 0:01:01]} 33. c5 {[%emt 1:21:34]} Kf7 {[%emt 0:00:00]} 34. Re1 {[%emt 0:00:00]} h5 {[%emt 0:00:28]} 35. d4 {[%emt 0:00:00]} a3 {[%emt 0:00:17]} 36. d5 {[%emt 0:00:00]} cxd5 {[%emt 0:01:15]} 37. c6 {[%emt 0:00:00]} Ke8 {[%emt 0:00:00]} 38. Bg5+ {[%emt 0:00:00]} Kf7 {[%emt 0:00:00]} 1-0

[Event "FIDE WCCC Open-08 2024"]
[Site "Montesilvano"]
[Date "2024.11.20"]
[Round "6.33"]
[White "Saathvik Chakravarthy Ramayana"]
[Black "Le, Khai"]
[Result "1-0"]
[ECO "B22"]
[WhiteElo "1466"]
[BlackElo "1808"]
[Annotator "NA RC"]
[PlyCount "87"]
[EventDate "2024.11.18"]
[EventType "swiss"]
[EventCountry "ITA"]
[SourceTitle "playchess.com"]
[Source "ChessBase"]
[SourceQuality "1"]
[TimeControl "5400+30"]

1. e4 {[%emt 0:00:08]} c5 {[%emt 0:00:41]} 2. c3 {[%emt 0:00:21]} d5 {[%emt 0:02:18]} 3. exd5 {[%emt 0:00:19]} Qxd5 {[%emt 0:01:32]} 4. d4 {[%emt 0:00:22]} Nf6 {[%emt 0:00:59]} 5. Nf3 {[%emt 0:00:35]} Bg4 {[%emt 0:02:00]} 6. Be2 {[%emt 0:00:40]} Nc6 {[%emt 0:02:46]} 7. O-O {[%emt 0:02:21]} e6 {[%emt 0:01:29]} 8. h3 {[%emt 0:00:58]} Bh5 {[%emt 0:02:40]} 9. Be3 {[%emt 0:02:12]} cxd4 {[%emt 0:01:21]} 10. cxd4 {[%emt 0:00:14]} Be7 {[%emt 0:01:44]} 11. Nc3 {[%emt 0:00:38]} Qd6 {[%emt 0:02:15]} 12. Nb5 {[%emt 0:01:47]} Qd8 {[%emt 0:02:00]} 13. a3 {[%emt 0:10:47]} a6 {[%emt 0:04:01]} 14. Nc3 {[%emt 0:02:50]} O-O {[%emt 0:06:59]} 15. Rc1 {[%emt 0:00:38]} Rc8 {[%emt 0:05:15]} 16. Ne5 {[%emt 0:06:34]} Bxe2 {[%emt 0:02:30]} 17. Qxe2 {[%emt 0:00:35]} Nxd4 {[%emt 0:02:29]} 18. Bxd4 {[%emt 0:11:12]} Qxd4 {[%emt 0:02:16]} 19. Rfd1 {[%emt 0:00:10]} Qb6 {[%emt 0:04:45]} 20. Ne4 {[%emt 0:08:02]} Rfd8 {[%emt 0:07:41]} 21. Ng5 {[%emt 0:05:55]} Rf8 {[%emt 0:03:19]} 22. Rxc8 {[%emt 0:04:50]} Rxc8 {[%emt 0:01:56]} 23. Ngxf7 {[%emt 0:00:25]} Nd5 {[%emt 0:01:21]} 24. Nh6+ {[%emt 0:09:27]} gxh6 {[%emt 0:03:31]} 25. Rxd5 {[%emt 0:00:23]} exd5 {[%emt 0:00:09]} 26. Qg4+ {[%emt 0:00:14]} Bg5 {[%emt 0:00:55]} 27. Qxc8+ {[%emt 0:00:28]} Kg7 {[%emt 0:01:38]} 28. Qd7+ {[%emt 0:00:07]} Kf6 {[%emt 0:00:14]} 29. Ng4+ {[%emt 0:02:58]} Kg6 {[%emt 0:00:47]} 30. Qxd5 {[%emt 0:04:28]} Qxb2 {[%emt 0:00:41]} 31. Ne5+ {[%emt 0:01:50]} Kf6 {[%emt 0:00:22]} 32. Qd6+ {[%emt 0:02:33]} Kf5 {[%emt 0:01:17]} 33. g4+ {[%emt 0:01:07]} Ke4 {[%emt 0:05:01]} 34. f3+ {[%emt 0:00:15]} Ke3 {[%emt 0:00:30]} 35. Nc4+ {[%emt 0:00:08]} Kxf3 {[%emt 0:00:08]} 36. Nxb2 {[%emt 0:00:07]} Be3+ {[%emt 0:00:53]} 37. Kf1 {[%emt 0:00:11]} a5 {[%emt 0:00:13]} 38. Qd5+ {[%emt 0:00:22]} Kg3 {[%emt 0:00:12]} 39. Qg2+ {[%emt 0:00:21]} Kh4 {[%emt 0:00:10]} 40. g5 {[%emt 0:00:24]} h5 {[%emt 0:01:09]} 41. Ke2 {[%emt 0:00:31]} Bc5 {[%emt 0:00:18]} 42. Kf3 {[%emt 0:00:08]} Bd6 {[%emt 0:00:10]} 43. Nc4 {[%emt 0:00:25]} Bb8 {[%emt 0:00:08]} 44. Ne3 {[%emt 0:00:11]} 1-0